[Event "Titled Tuesday Blitz July 18 Late 2023"]
[White "Papp, Levente"]
[Black "Jimenez Almeida, Luis David"]
[WhiteFideId "751243"]
[BlackFideId "22242244"]
[WhiteElo "2719"]
[BlackElo "2586"]
[Result "0-1"]
[Round "8"]
[TimeControl "180+2"]
[Date "2023.07.18"]
[WhiteClock "0:00:00"]
[BlackClock "0:00:03"]
[Board "37"]

1. b3 {[%clk 0:03:00]}  a5 {[%clk 0:02:59]} 2. a3 {[%clk 0:02:58]}  e5 {[%clk 0:02:58]} 3. Bb2 {[%clk 0:02:58]}  Nc6 {[%clk 0:02:58]} 4. c4 {[%clk 0:02:58]}  g6 {[%clk 0:02:57]} 5. g3 {[%clk 0:02:37]}  Bg7 {[%clk 0:02:56]} 6. Bg2 {[%clk 0:02:37]}  Nge7 {[%clk 0:02:57]} 7. e3 {[%clk 0:02:35]}  O-O {[%clk 0:02:49]} 8. Ne2 {[%clk 0:02:34]}  d5 {[%clk 0:02:48]} 9. cxd5 {[%clk 0:02:35]}  Nxd5 {[%clk 0:02:49]} 10. O-O {[%clk 0:02:31]}  Be6 {[%clk 0:02:46]} 11. d4 {[%clk 0:02:26]}  Nb6 {[%clk 0:02:27]} 12. Bxc6 {[%clk 0:01:32]}  bxc6 {[%clk 0:02:28]} 13. dxe5 {[%clk 0:01:27]}  Qxd1 {[%clk 0:02:28]} 14. Rxd1 {[%clk 0:01:28]}  Bxb3 {[%clk 0:02:28]} 15. Rd3 {[%clk 0:01:01]}  a4 {[%clk 0:02:14]} 16. Nd2 {[%clk 0:00:56]}  Rad8 {[%clk 0:01:44]} 17. Rxd8 {[%clk 0:00:48]}  Rxd8 {[%clk 0:01:45]} 18. Ne4 {[%clk 0:00:16]}  Nc4 {[%clk 0:01:36]} 19. Bd4 {[%clk 0:00:14]}  Nxe5 {[%clk 0:01:29]} 20. Rc1 {[%clk 0:00:11]}  Nf3+ {[%clk 0:01:03]} 21. Kg2 {[%clk 0:00:08]}  Nxd4 {[%clk 0:01:00]} 22. exd4 {[%clk 0:00:07]}  Bd5 {[%clk 0:00:55]} 23. f3 {[%clk 0:00:07]}  Rb8 {[%clk 0:00:44]} 24. N2c3 {[%clk 0:00:06]}  Rb2+ {[%clk 0:00:44]} 25. Kh3 {[%clk 0:00:05]}  Be6+ {[%clk 0:00:40]} 26. g4 {[%clk 0:00:06]}  Bxd4 {[%clk 0:00:28]} 27. Nxa4 {[%clk 0:00:06]}  Rb3 {[%clk 0:00:27]} 28. Nac3 {[%clk 0:00:06]}  Rxa3 {[%clk 0:00:19]} 29. Kg3 {[%clk 0:00:05]}  Be5+ {[%clk 0:00:18]} 30. f4 {[%clk 0:00:04]}  Bd4 {[%clk 0:00:15]} 31. Kh4 {[%clk 0:00:04]}  Kg7 {[%clk 0:00:14]} 32. f5 {[%clk 0:00:03]}  gxf5 {[%clk 0:00:12]} 33. gxf5 {[%clk 0:00:04]}  Bxf5 {[%clk 0:00:12]} 34. Ne2 {[%clk 0:00:04]}  Bf6+ {[%clk 0:00:09]} 35. Nxf6 {[%clk 0:00:05]}  Kxf6 {[%clk 0:00:10]} 36. Rxc6+ {[%clk 0:00:05]}  Be6 {[%clk 0:00:09]} 37. Ng3 {[%clk 0:00:04]}  Ra4+ {[%clk 0:00:07]} 38. Kh5 {[%clk 0:00:05]}  Rc4 {[%clk 0:00:05]} 39. Ra6 {[%clk 0:00:03]}  Rc5+ {[%clk 0:00:04]} 40. Kh6 {[%clk 0:00:03]}  Rc4 {[%clk 0:00:04]} 41. Nh5+ {[%clk 0:00:00]}  Ke7 {[%clk 0:00:03]} 0-1


[Site "https://www.chess.com"]

[Event "Titled Tuesday Blitz July 18 Late 2023"]
[White "Hajiyev, Kanan"]
[Black "Dimitrov, Atanas"]
[WhiteFideId "13404148"]
[BlackFideId "2901315"]
[WhiteElo "2566"]
[BlackElo "2703"]
[Result "1-0"]
[Round "8"]
[TimeControl "180+2"]
[Date "2023.07.18"]
[WhiteClock "0:00:46"]
[BlackClock "0:00:18"]
[Board "39"]

1. d4 {[%clk 0:03:00]}  Nf6 {[%clk 0:03:00]} 2. c4 {[%clk 0:03:01]}  g6 {[%clk 0:03:00]} 3. Nf3 {[%clk 0:03:01]}  Bg7 {[%clk 0:03:00]} 4. g3 {[%clk 0:03:02]}  O-O {[%clk 0:03:01]} 5. Bg2 {[%clk 0:03:03]}  c6 {[%clk 0:02:59]} 6. O-O {[%clk 0:03:03]}  d5 {[%clk 0:03:00]} 7. cxd5 {[%clk 0:03:04]}  cxd5 {[%clk 0:03:00]} 8. Nc3 {[%clk 0:03:05]}  Nc6 {[%clk 0:03:00]} 9. Ne5 {[%clk 0:03:05]}  Qb6 {[%clk 0:02:48]} 10. Nxc6 {[%clk 0:03:03]}  bxc6 {[%clk 0:02:46]} 11. Na4 {[%clk 0:03:03]}  Qd8 {[%clk 0:02:39]} 12. b3 {[%clk 0:03:02]}  Ba6 {[%clk 0:02:39]} 13. Ba3 {[%clk 0:03:01]}  Nd7 {[%clk 0:02:39]} 14. Re1 {[%clk 0:02:59]}  Re8 {[%clk 0:02:38]} 15. Rc1 {[%clk 0:02:58]}  Rc8 {[%clk 0:02:37]} 16. e3 {[%clk 0:02:48]}  e5 {[%clk 0:02:29]} 17. Bb2 {[%clk 0:02:42]}  Qe7 {[%clk 0:02:18]} 18. Nc5 {[%clk 0:02:27]}  Nxc5 {[%clk 0:02:17]} 19. Rxc5 {[%clk 0:02:28]}  exd4 {[%clk 0:02:14]} 20. Bxd4 {[%clk 0:02:28]}  Bxd4 {[%clk 0:02:10]} 21. Qxd4 {[%clk 0:02:29]}  Qd6 {[%clk 0:01:51]} 22. Rec1 {[%clk 0:02:27]}  Bb7 {[%clk 0:01:50]} 23. Ra5 {[%clk 0:02:25]}  a6 {[%clk 0:01:42]} 24. h4 {[%clk 0:02:25]}  h5 {[%clk 0:01:42]} 25. b4 {[%clk 0:02:09]}  Rc7 {[%clk 0:01:40]} 26. Qb6 {[%clk 0:01:51]}  Ree7 {[%clk 0:01:29]} 27. Bxd5 {[%clk 0:01:40]}  Qf6 {[%clk 0:01:21]} 28. Rac5 {[%clk 0:01:27]}  Rcd7 {[%clk 0:01:12]} 29. Bxc6 {[%clk 0:01:22]}  Rd2 {[%clk 0:01:11]} 30. Rf1 {[%clk 0:01:11]}  Rxa2 {[%clk 0:01:06]} 31. Qd8+ {[%clk 0:01:09]}  Kg7 {[%clk 0:01:05]} 32. Bxb7 {[%clk 0:00:46]}  Rxb7 {[%clk 0:00:18]} 33. Qd5 {[%clk 0:00:46]} 1-0


[Site "https://www.chess.com"]

[Event "Titled Tuesday Blitz July 18 Late 2023"]
[White "Besedes, Danilo"]
[Black "Amburgy, Ryan"]
[WhiteFideId "946796"]
[BlackFideId "30924820"]
[WhiteElo "2555"]
[BlackElo "2679"]
[Result "0-1"]
[Round "8"]
[TimeControl "180+2"]
[Date "2023.07.18"]
[WhiteClock "0:00:12"]
[BlackClock "0:01:34"]
[Board "40"]

1. b3 {[%clk 0:02:58]}  e5 {[%clk 0:02:58]} 2. Bb2 {[%clk 0:02:58]}  Nc6 {[%clk 0:02:58]} 3. e3 {[%clk 0:02:59]}  Nf6 {[%clk 0:02:58]} 4. Bb5 {[%clk 0:02:58]}  Qe7 {[%clk 0:02:58]} 5. Ne2 {[%clk 0:02:55]}  a6 {[%clk 0:02:58]} 6. Bxc6 {[%clk 0:02:53]}  dxc6 {[%clk 0:02:59]} 7. Nbc3 {[%clk 0:02:52]}  Bf5 {[%clk 0:02:56]} 8. Ng3 {[%clk 0:02:51]}  Bg6 {[%clk 0:02:56]} 9. d3 {[%clk 0:02:51]}  O-O-O {[%clk 0:02:56]} 10. Qf3 {[%clk 0:02:44]}  Qe6 {[%clk 0:02:53]} 11. O-O-O {[%clk 0:02:41]}  Bb4 {[%clk 0:02:39]} 12. h3 {[%clk 0:02:31]}  h5 {[%clk 0:02:29]} 13. Nge4 {[%clk 0:02:28]}  Bxc3 {[%clk 0:02:23]} 14. Nxc3 {[%clk 0:02:22]}  h4 {[%clk 0:02:23]} 15. Qe2 {[%clk 0:02:19]}  Nd5 {[%clk 0:02:16]} 16. Nxd5 {[%clk 0:02:18]}  cxd5 {[%clk 0:02:17]} 17. f3 {[%clk 0:02:16]}  f6 {[%clk 0:02:16]} 18. Rhf1 {[%clk 0:02:14]}  e4 {[%clk 0:02:13]} 19. dxe4 {[%clk 0:02:04]}  dxe4 {[%clk 0:02:14]} 20. Rxd8+ {[%clk 0:01:58]}  Rxd8 {[%clk 0:02:14]} 21. Rd1 {[%clk 0:01:58]}  Rxd1+ {[%clk 0:02:08]} 22. Qxd1 {[%clk 0:01:58]}  exf3 {[%clk 0:02:06]} 23. Qxf3 {[%clk 0:01:59]}  Be4 {[%clk 0:02:06]} 24. Qf2 {[%clk 0:01:53]}  Qc6 {[%clk 0:02:06]} 25. Bd4 {[%clk 0:01:46]}  b5 {[%clk 0:02:01]} 26. Kb2 {[%clk 0:01:39]}  a5 {[%clk 0:01:53]} 27. c3 {[%clk 0:01:35]}  Bxg2 {[%clk 0:01:51]} 28. Qxh4 {[%clk 0:01:34]}  Qf3 {[%clk 0:01:44]} 29. Qh8+ {[%clk 0:01:24]}  Kb7 {[%clk 0:01:44]} 30. Qe8 {[%clk 0:01:21]}  Qe2+ {[%clk 0:01:42]} 31. Ka3 {[%clk 0:01:21]}  Bc6 {[%clk 0:01:37]} 32. Qe7 {[%clk 0:01:16]}  Qc2 {[%clk 0:01:35]} 33. Qc5 {[%clk 0:00:12]}  Qc1# {[%clk 0:01:34]} 0-1


[Site "https://www.chess.com"]

[Event "Titled Tuesday Blitz July 18 Late 2023"]
[White "Silva Lucena, Cristian"]
[Black "Bjelobrk, Igor"]
[WhiteFideId "2232588"]
[BlackFideId "4300726"]
[WhiteElo "2422"]
[BlackElo "2660"]
[Result "1/2-1/2"]
[Round "8"]
[TimeControl "180+2"]
[Date "2023.07.18"]
[WhiteClock "0:00:48"]
[BlackClock "0:00:04"]
[Board "41"]

1. e4 {[%clk 0:03:00]}  e6 {[%clk 0:02:58]} 2. d4 {[%clk 0:03:00]}  d5 {[%clk 0:02:56]} 3. e5 {[%clk 0:03:01]}  c5 {[%clk 0:02:55]} 4. c3 {[%clk 0:03:01]}  Nc6 {[%clk 0:02:55]} 5. Nf3 {[%clk 0:03:02]}  Qb6 {[%clk 0:02:54]} 6. a3 {[%clk 0:03:02]}  c4 {[%clk 0:02:49]} 7. Nbd2 {[%clk 0:03:01]}  Na5 {[%clk 0:02:47]} 8. Be2 {[%clk 0:03:02]}  Bd7 {[%clk 0:02:39]} 9. Rb1 {[%clk 0:03:03]}  Ne7 {[%clk 0:02:34]} 10. b4 {[%clk 0:03:03]}  cxb3 {[%clk 0:02:32]} 11. Nxb3 {[%clk 0:03:04]}  Ba4 {[%clk 0:02:32]} 12. Nxa5 {[%clk 0:03:04]}  Qxa5 {[%clk 0:02:28]} 13. Qd3 {[%clk 0:03:04]}  b5 {[%clk 0:02:24]} 14. Rxb5 {[%clk 0:03:02]}  Bxb5 {[%clk 0:02:24]} 15. Qxb5+ {[%clk 0:03:03]}  Qxb5 {[%clk 0:02:24]} 16. Bxb5+ {[%clk 0:03:04]}  Kd8 {[%clk 0:02:25]} 17. Ng5 {[%clk 0:03:05]}  Kc7 {[%clk 0:02:10]} 18. Nxf7 {[%clk 0:03:05]}  Rg8 {[%clk 0:02:11]} 19. Ng5 {[%clk 0:03:05]}  Nc6 {[%clk 0:01:54]} 20. Nxe6+ {[%clk 0:03:03]}  Kb6 {[%clk 0:01:55]} 21. Bd3 {[%clk 0:03:02]}  g6 {[%clk 0:01:43]} 22. Nxf8 {[%clk 0:02:53]}  Rgxf8 {[%clk 0:01:42]} 23. O-O {[%clk 0:02:54]}  Rac8 {[%clk 0:01:32]} 24. f4 {[%clk 0:02:50]}  Na5 {[%clk 0:01:31]} 25. Bd2 {[%clk 0:02:45]}  Nc4 {[%clk 0:01:25]} 26. Rb1+ {[%clk 0:02:42]}  Ka6 {[%clk 0:01:26]} 27. g3 {[%clk 0:02:30]}  Ka5 {[%clk 0:01:25]} 28. Be1 {[%clk 0:02:19]}  Rb8 {[%clk 0:01:12]} 29. Rb4 {[%clk 0:02:16]}  Nxa3 {[%clk 0:01:10]} 30. Rxb8 {[%clk 0:02:10]}  Rxb8 {[%clk 0:01:09]} 31. c4+ {[%clk 0:02:11]}  Ka4 {[%clk 0:00:48]} 32. cxd5 {[%clk 0:02:11]}  Rb3 {[%clk 0:00:48]} 33. Be4 {[%clk 0:01:41]}  Re3 {[%clk 0:00:46]} 34. d6 {[%clk 0:01:41]}  Rxe1+ {[%clk 0:00:43]} 35. Kf2 {[%clk 0:01:40]}  Rxe4 {[%clk 0:00:43]} 36. d7 {[%clk 0:01:37]}  Rxd4 {[%clk 0:00:42]} 37. e6 {[%clk 0:01:38]}  Nb5 {[%clk 0:00:27]} 38. e7 {[%clk 0:01:38]}  Rxd7 {[%clk 0:00:27]} 39. e8=Q {[%clk 0:01:38]}  Rc7 {[%clk 0:00:27]} 40. Qe4+ {[%clk 0:01:33]}  Kb3 {[%clk 0:00:26]} 41. g4 {[%clk 0:01:22]}  a5 {[%clk 0:00:25]} 42. Qd3+ {[%clk 0:01:20]}  Kb4 {[%clk 0:00:26]} 43. f5 {[%clk 0:01:19]}  gxf5 {[%clk 0:00:25]} 44. gxf5 {[%clk 0:01:20]}  a4 {[%clk 0:00:25]} 45. Qe4+ {[%clk 0:01:20]}  Kb3 {[%clk 0:00:25]} 46. f6 {[%clk 0:01:20]}  a3 {[%clk 0:00:25]} 47. Qe6+ {[%clk 0:01:20]}  Kb4 {[%clk 0:00:26]} 48. f7 {[%clk 0:01:21]}  Rxf7+ {[%clk 0:00:18]} 49. Qxf7 {[%clk 0:01:20]}  Nc3 {[%clk 0:00:18]} 50. Qb7+ {[%clk 0:01:15]}  Kc4 {[%clk 0:00:18]} 51. Qxh7 {[%clk 0:01:10]}  a2 {[%clk 0:00:17]} 52. Qa7 {[%clk 0:01:09]}  Kb3 {[%clk 0:00:17]} 53. Qb6+ {[%clk 0:01:09]}  Kc2 {[%clk 0:00:17]} 54. Qa5 {[%clk 0:01:07]}  Kb2 {[%clk 0:00:17]} 55. Qb4+ {[%clk 0:01:07]}  Kc2 {[%clk 0:00:12]} 56. Qa3 {[%clk 0:01:06]}  Nd1+ {[%clk 0:00:03]} 57. Kg3 {[%clk 0:01:02]}  Kb1 {[%clk 0:00:03]} 58. Qd3+ {[%clk 0:00:58]}  Kc1 {[%clk 0:00:02]} 59. Qc4+ {[%clk 0:00:56]}  Kb1 {[%clk 0:00:03]} 60. Qb3+ {[%clk 0:00:53]}  Nb2 {[%clk 0:00:02]} 61. Qxa2+ {[%clk 0:00:48]}  Kxa2 {[%clk 0:00:03]} 62. h4 {[%clk 0:00:48]}  Nc4 {[%clk 0:00:04]} 63. h5 {[%clk 0:00:48]}  Nd6 {[%clk 0:00:04]} 64. h6 {[%clk 0:00:47]}  Nf7 {[%clk 0:00:05]} 65. Kf4 {[%clk 0:00:48]}  Nxh6 {[%clk 0:00:04]} 1/2-1/2


[Site "https://www.chess.com"]

[Event "Titled Tuesday Blitz July 18 Late 2023"]
[White "Stoyanov, Tsvetan"]
[Black "Poltorak, Sebastian"]
[WhiteFideId "2917173"]
[BlackFideId "1199498"]
[WhiteElo "2719"]
[BlackElo "2532"]
[Result "1-0"]
[Round "8"]
[TimeControl "180+2"]
[Date "2023.07.18"]
[WhiteClock "0:01:08"]
[BlackClock "0:00:00"]
[Board "45"]

1. e4 {[%clk 0:03:00]}  Nc6 {[%clk 0:02:57]} 2. Nf3 {[%clk 0:02:59]}  f5 {[%clk 0:02:58]} 3. exf5 {[%clk 0:02:56]}  d5 {[%clk 0:02:53]} 4. Bb5 {[%clk 0:02:55]}  Bxf5 {[%clk 0:02:52]} 5. Ne5 {[%clk 0:02:54]}  Qd6 {[%clk 0:02:47]} 6. d4 {[%clk 0:02:54]}  e6 {[%clk 0:02:10]} 7. O-O {[%clk 0:02:53]}  Ne7 {[%clk 0:01:59]} 8. b3 {[%clk 0:02:19]}  Qb4 {[%clk 0:01:25]} 9. a4 {[%clk 0:02:08]}  O-O-O {[%clk 0:01:18]} 10. c3 {[%clk 0:02:06]}  Qa5 {[%clk 0:01:15]} 11. Nf7 {[%clk 0:01:55]}  Rg8 {[%clk 0:00:56]} 12. b4 {[%clk 0:01:48]}  Qb6 {[%clk 0:00:52]} 13. Nxd8 {[%clk 0:01:48]}  Nxd8 {[%clk 0:00:52]} 14. Bf4 {[%clk 0:01:41]}  Ng6 {[%clk 0:00:51]} 15. Bg3 {[%clk 0:01:39]}  Nf7 {[%clk 0:00:50]} 16. Na3 {[%clk 0:01:37]}  c6 {[%clk 0:00:51]} 17. a5 {[%clk 0:01:36]}  Qd8 {[%clk 0:00:51]} 18. Bd3 {[%clk 0:01:34]}  Qg5 {[%clk 0:00:47]} 19. a6 {[%clk 0:01:29]}  b5 {[%clk 0:00:45]} 20. Bxb5 {[%clk 0:01:22]}  cxb5 {[%clk 0:00:40]} 21. Nxb5 {[%clk 0:01:23]}  Qe7 {[%clk 0:00:28]} 22. Qa4 {[%clk 0:01:20]}  Qd7 {[%clk 0:00:26]} 23. Nxa7+ {[%clk 0:01:15]}  Qxa7 {[%clk 0:00:26]} 24. Qc6+ {[%clk 0:01:14]}  Kd8 {[%clk 0:00:26]} 25. Qb7 {[%clk 0:01:09]}  Qxb7 {[%clk 0:00:05]} 26. axb7 {[%clk 0:01:10]}  Bd6 {[%clk 0:00:02]} 27. Bxd6 {[%clk 0:01:08]}  Kd7 {[%clk 0:00:03]} 28. b8=Q {[%clk 0:01:08]}  Rxb8 {[%clk 0:00:00]} 29. Bxb8 {[%clk 0:01:08]} 1-0


[Site "https://www.chess.com"]

[Event "Titled Tuesday Blitz July 18 Late 2023"]
[White "Rastbod, Ali"]
[Black "Rangel, Daniel"]
[WhiteFideId "12567477"]
[BlackFideId "2124475"]
[WhiteElo "2684"]
[BlackElo "2530"]
[Result "1-0"]
[Round "8"]
[TimeControl "180+2"]
[Date "2023.07.18"]
[WhiteClock "0:01:32"]
[BlackClock "0:00:06"]
[Board "48"]

1. e4 {[%clk 0:03:00]}  c5 {[%clk 0:02:57]} 2. Nc3 {[%clk 0:02:58]}  g6 {[%clk 0:02:58]} 3. g3 {[%clk 0:02:57]}  Bg7 {[%clk 0:02:58]} 4. Bg2 {[%clk 0:02:57]}  Nc6 {[%clk 0:02:58]} 5. d3 {[%clk 0:02:58]}  d6 {[%clk 0:02:59]} 6. Be3 {[%clk 0:02:59]}  e5 {[%clk 0:02:58]} 7. f4 {[%clk 0:02:55]}  Be6 {[%clk 0:02:55]} 8. Nh3 {[%clk 0:02:55]}  h6 {[%clk 0:02:51]} 9. O-O {[%clk 0:02:54]}  Nge7 {[%clk 0:02:50]} 10. Qd2 {[%clk 0:02:53]}  Qd7 {[%clk 0:02:49]} 11. Nf2 {[%clk 0:02:53]}  Nd4 {[%clk 0:02:43]} 12. Ncd1 {[%clk 0:02:47]}  h5 {[%clk 0:02:29]} 13. c3 {[%clk 0:02:46]}  Ndc6 {[%clk 0:02:29]} 14. h4 {[%clk 0:02:45]}  exf4 {[%clk 0:02:19]} 15. Bxf4 {[%clk 0:02:43]}  Ne5 {[%clk 0:02:15]} 16. Ne3 {[%clk 0:02:41]}  N7c6 {[%clk 0:02:01]} 17. Kh1 {[%clk 0:02:36]}  O-O {[%clk 0:01:54]} 18. b3 {[%clk 0:02:33]}  Rae8 {[%clk 0:01:48]} 19. d4 {[%clk 0:02:26]}  cxd4 {[%clk 0:01:48]} 20. cxd4 {[%clk 0:02:27]}  Ng4 {[%clk 0:01:47]} 21. d5 {[%clk 0:02:22]}  Nxf2+ {[%clk 0:01:37]} 22. Qxf2 {[%clk 0:02:15]}  Bxa1 {[%clk 0:01:34]} 23. dxc6 {[%clk 0:02:15]}  bxc6 {[%clk 0:01:25]} 24. Rxa1 {[%clk 0:02:15]}  Bh3 {[%clk 0:01:20]} 25. Bh6 {[%clk 0:02:03]}  Bxg2+ {[%clk 0:01:18]} 26. Nxg2 {[%clk 0:02:01]}  Rxe4 {[%clk 0:01:03]} 27. Bxf8 {[%clk 0:01:59]}  Kxf8 {[%clk 0:01:04]} 28. Re1 {[%clk 0:01:59]}  d5 {[%clk 0:00:57]} 29. Rxe4 {[%clk 0:01:53]}  dxe4 {[%clk 0:00:58]} 30. Nf4 {[%clk 0:01:53]}  Qd1+ {[%clk 0:00:53]} 31. Kg2 {[%clk 0:01:51]}  Qb1 {[%clk 0:00:50]} 32. Nxg6+ {[%clk 0:01:48]}  Kg7 {[%clk 0:00:51]} 33. Nf4 {[%clk 0:01:47]}  Kh6 {[%clk 0:00:47]} 34. Qe2 {[%clk 0:01:46]}  Kg7 {[%clk 0:00:39]} 35. Nxh5+ {[%clk 0:01:44]}  Kf8 {[%clk 0:00:38]} 36. Nf6 {[%clk 0:01:39]}  e3 {[%clk 0:00:34]} 37. Ng4 {[%clk 0:01:37]}  Qe4+ {[%clk 0:00:32]} 38. Kh2 {[%clk 0:01:38]}  f5 {[%clk 0:00:23]} 39. Nxe3 {[%clk 0:01:37]}  Kg8 {[%clk 0:00:23]} 40. Qf2 {[%clk 0:01:36]}  a5 {[%clk 0:00:20]} 41. Nxf5 {[%clk 0:01:36]}  a4 {[%clk 0:00:19]} 42. bxa4 {[%clk 0:01:35]}  Qxa4 {[%clk 0:00:19]} 43. Nh6+ {[%clk 0:01:35]}  Kh7 {[%clk 0:00:18]} 44. Qf5+ {[%clk 0:01:33]}  Kg7 {[%clk 0:00:06]} 45. Qg4+ {[%clk 0:01:32]} 1-0


[Site "https://www.chess.com"]

[Event "Titled Tuesday Blitz July 18 Late 2023"]
[White "Graif, William"]
[Black "Begmuratov, Alisher"]
[WhiteFideId "2609835"]
[BlackFideId "14203367"]
[WhiteElo "2525"]
[BlackElo "2648"]
[Result "1-0"]
[Round "8"]
[TimeControl "180+2"]
[Date "2023.07.18"]
[WhiteClock "0:00:13"]
[BlackClock "0:00:10"]
[Board "50"]

1. e4 {[%clk 0:02:58]}  c6 {[%clk 0:02:57]} 2. d4 {[%clk 0:02:55]}  d5 {[%clk 0:02:58]} 3. Nc3 {[%clk 0:02:55]}  dxe4 {[%clk 0:02:58]} 4. Bc4 {[%clk 0:02:56]}  Nf6 {[%clk 0:02:54]} 5. f3 {[%clk 0:02:55]}  e3 {[%clk 0:02:54]} 6. Bxe3 {[%clk 0:02:53]}  Bf5 {[%clk 0:02:51]} 7. Nge2 {[%clk 0:02:50]}  e6 {[%clk 0:02:51]} 8. g4 {[%clk 0:02:48]}  Bg6 {[%clk 0:02:42]} 9. Nf4 {[%clk 0:02:49]}  Bd6 {[%clk 0:02:41]} 10. Qd2 {[%clk 0:02:33]}  Nbd7 {[%clk 0:02:29]} 11. h4 {[%clk 0:02:31]}  Bxf4 {[%clk 0:02:29]} 12. Bxf4 {[%clk 0:02:30]}  h5 {[%clk 0:02:29]} 13. O-O-O {[%clk 0:02:05]}  Nb6 {[%clk 0:02:23]} 14. Be2 {[%clk 0:01:39]}  Nbd5 {[%clk 0:02:10]} 15. Be5 {[%clk 0:01:36]}  Qa5 {[%clk 0:01:37]} 16. Nxd5 {[%clk 0:01:12]}  Qxd2+ {[%clk 0:01:13]} 17. Rxd2 {[%clk 0:01:12]}  cxd5 {[%clk 0:01:14]} 18. g5 {[%clk 0:01:11]}  Nd7 {[%clk 0:01:13]} 19. Bxg7 {[%clk 0:01:07]}  Rg8 {[%clk 0:01:12]} 20. Be5 {[%clk 0:01:04]}  Nxe5 {[%clk 0:01:11]} 21. dxe5 {[%clk 0:01:05]}  Ke7 {[%clk 0:01:11]} 22. f4 {[%clk 0:00:52]}  Rac8 {[%clk 0:01:08]} 23. c3 {[%clk 0:00:46]}  Rc5 {[%clk 0:01:07]} 24. Rhd1 {[%clk 0:00:43]}  Rgc8 {[%clk 0:01:07]} 25. Rd4 {[%clk 0:00:36]}  b5 {[%clk 0:01:04]} 26. a3 {[%clk 0:00:34]}  a5 {[%clk 0:01:03]} 27. Kd2 {[%clk 0:00:25]}  R8c7 {[%clk 0:01:00]} 28. Ke3 {[%clk 0:00:25]}  Kd7 {[%clk 0:00:57]} 29. f5 {[%clk 0:00:24]}  exf5 {[%clk 0:00:49]} 30. Rxd5+ {[%clk 0:00:24]}  Ke6 {[%clk 0:00:49]} 31. Bf3 {[%clk 0:00:16]}  Rc4 {[%clk 0:00:40]} 32. R5d4 {[%clk 0:00:16]}  Kxe5 {[%clk 0:00:37]} 33. Rxc4 {[%clk 0:00:15]}  bxc4 {[%clk 0:00:36]} 34. Rd5+ {[%clk 0:00:15]}  Ke6 {[%clk 0:00:36]} 35. Rxa5 {[%clk 0:00:15]}  Rd7 {[%clk 0:00:36]} 36. Ra6+ {[%clk 0:00:13]}  Ke5 {[%clk 0:00:36]} 37. Ra5+ {[%clk 0:00:12]}  Ke6 {[%clk 0:00:36]} 38. Be2 {[%clk 0:00:13]}  Rc7 {[%clk 0:00:30]} 39. Kd4 {[%clk 0:00:13]}  f4 {[%clk 0:00:29]} 40. Bxc4+ {[%clk 0:00:12]}  Kd6 {[%clk 0:00:29]} 41. Ra6+ {[%clk 0:00:12]}  Ke7 {[%clk 0:00:28]} 42. Rf6 {[%clk 0:00:13]}  Rd7+ {[%clk 0:00:25]} 43. Bd5 {[%clk 0:00:13]}  Rd8 {[%clk 0:00:18]} 44. Rxf4 {[%clk 0:00:13]}  Kd6 {[%clk 0:00:18]} 45. Rf6+ {[%clk 0:00:12]}  Ke7 {[%clk 0:00:17]} 46. c4 {[%clk 0:00:13]}  Rb8 {[%clk 0:00:17]} 47. b4 {[%clk 0:00:13]}  Rd8 {[%clk 0:00:17]} 48. b5 {[%clk 0:00:13]}  Rd7 {[%clk 0:00:17]} 49. b6 {[%clk 0:00:13]}  Rd8 {[%clk 0:00:17]} 50. a4 {[%clk 0:00:13]}  Rb8 {[%clk 0:00:17]} 51. a5 {[%clk 0:00:13]}  Kd7 {[%clk 0:00:18]} 52. a6 {[%clk 0:00:14]}  Re8 {[%clk 0:00:17]} 53. a7 {[%clk 0:00:14]}  Re1 {[%clk 0:00:16]} 54. a8=Q {[%clk 0:00:14]}  Rd1+ {[%clk 0:00:16]} 55. Kc5 {[%clk 0:00:14]}  Ke7 {[%clk 0:00:16]} 56. Qb7+ {[%clk 0:00:14]}  Ke8 {[%clk 0:00:15]} 57. Rd6 {[%clk 0:00:13]}  Kf8 {[%clk 0:00:14]} 58. Qb8+ {[%clk 0:00:12]}  Kg7 {[%clk 0:00:15]} 59. Qd8 {[%clk 0:00:13]}  Rf1 {[%clk 0:00:14]} 60. Rf6 {[%clk 0:00:13]}  Re1 {[%clk 0:00:14]} 61. Qd7 {[%clk 0:00:13]}  Re5 {[%clk 0:00:13]} 62. Rxf7+ {[%clk 0:00:12]}  Bxf7 {[%clk 0:00:10]} 63. Qxf7+ {[%clk 0:00:13]} 1-0


[Site "https://www.chess.com"]

[Event "Titled Tuesday Blitz July 18 Late 2023"]
[White "HamedWafa4"]
[Black "vishwa_vijeta"]
[WhiteElo "2610"]
[BlackElo "2511"]
[Result "0-1"]
[Round "8"]
[TimeControl "180+2"]
[Date "2023.07.18"]
[WhiteClock "0:00:19"]
[BlackClock "0:00:28"]
[Board "53"]

1. d4 {[%clk 0:03:00]}  Nf6 {[%clk 0:02:59]} 2. Nc3 {[%clk 0:03:00]}  d5 {[%clk 0:02:57]} 3. Bf4 {[%clk 0:02:57]}  g6 {[%clk 0:02:49]} 4. e3 {[%clk 0:02:56]}  Bg7 {[%clk 0:02:48]} 5. Nb5 {[%clk 0:02:56]}  Na6 {[%clk 0:02:47]} 6. Nc3 {[%clk 0:02:57]}  Nb8 {[%clk 0:02:44]} 7. Nb5 {[%clk 0:02:55]}  Na6 {[%clk 0:02:44]} 8. h3 {[%clk 0:02:54]}  c6 {[%clk 0:02:43]} 9. Nc3 {[%clk 0:02:53]}  Qb6 {[%clk 0:02:43]} 10. a3 {[%clk 0:02:52]}  O-O {[%clk 0:02:36]} 11. Nf3 {[%clk 0:02:51]}  Ne4 {[%clk 0:02:18]} 12. Bd3 {[%clk 0:02:27]}  Nxc3 {[%clk 0:02:10]} 13. bxc3 {[%clk 0:02:28]}  Qb2 {[%clk 0:02:06]} 14. O-O {[%clk 0:01:57]}  Qxc3 {[%clk 0:02:06]} 15. Bxa6 {[%clk 0:01:57]}  bxa6 {[%clk 0:02:05]} 16. Qd3 {[%clk 0:01:58]}  Qxd3 {[%clk 0:01:57]} 17. cxd3 {[%clk 0:01:59]}  Bf5 {[%clk 0:01:55]} 18. Rfd1 {[%clk 0:01:56]}  Rac8 {[%clk 0:01:54]} 19. Rac1 {[%clk 0:01:55]}  Rfe8 {[%clk 0:01:50]} 20. Rc5 {[%clk 0:01:53]}  Bd7 {[%clk 0:01:47]} 21. Ra5 {[%clk 0:01:52]}  c5 {[%clk 0:01:22]} 22. dxc5 {[%clk 0:01:49]}  e5 {[%clk 0:01:21]} 23. Bg3 {[%clk 0:01:49]}  Bb5 {[%clk 0:01:17]} 24. d4 {[%clk 0:01:47]}  exd4 {[%clk 0:01:10]} 25. exd4 {[%clk 0:01:44]}  Bf6 {[%clk 0:01:02]} 26. Bh4 {[%clk 0:01:33]}  Bg7 {[%clk 0:00:55]} 27. Bg3 {[%clk 0:01:12]}  h6 {[%clk 0:00:52]} 28. Rb1 {[%clk 0:01:11]}  g5 {[%clk 0:00:41]} 29. Rbxb5 {[%clk 0:01:06]}  axb5 {[%clk 0:00:41]} 30. Rxb5 {[%clk 0:01:06]}  Re7 {[%clk 0:00:37]} 31. Ra5 {[%clk 0:00:58]}  Re4 {[%clk 0:00:33]} 32. Ra4 {[%clk 0:00:32]}  Rxc5 {[%clk 0:00:30]} 33. Rxa7 {[%clk 0:00:31]}  Bxd4 {[%clk 0:00:28]} 34. Ra8+ {[%clk 0:00:31]}  Kh7 {[%clk 0:00:28]} 35. Ra7 {[%clk 0:00:27]}  Rc1+ {[%clk 0:00:27]} 36. Kh2 {[%clk 0:00:19]}  Bxa7 {[%clk 0:00:28]} 0-1


[Site "https://www.chess.com"]